bitfinex/quotes_BTCUSD_20250406
["timestamp","ask_amount","ask_price","bid_price","bid_amount"]
[1743915660048,0.1795,83565.0,83561.0,0.06290346]
[1743915661087,0.011966,83566.0,83561.0,0.24241146]
[1743915661292,0.179499,83566.0,83561.0,0.24241146]
[1743915661748,0.179499,83566.0,83561.0,0.06290346]
[1743915662450,0.34,83565.0,83561.0,0.06290346]
[1743915662912,0.507535,83565.0,83561.0,0.06290346]
[1743915663309,0.3553653,83565.0,83561.0,0.06290346]
[1743915664502,0.5229013,83565.0,83561.0,0.06290346]
[1743915664928,0.5348673,83565.0,83561.0,0.06290346]
[1743915665091,0.34,83562.0,83561.0,0.06290346]
[1743915666200,0.351966,83564.0,83561.0,0.06290346]
[1743915667183,0.34,83564.0,83561.0,0.06290346]
[1743915667403,0.34,83564.0,83561.0,0.23044346]
[1743915668428,0.3553653,83565.0,83561.0,0.23044346]
[1743915669414,0.5229003,83565.0,83561.0,0.06290346]
[1743915670310,0.3553653,83565.0,83561.0,0.23044346]
[1743915671408,0.3553653,83565.0,83561.0,0.23077066]
[1743915671811,0.0155289,83565.0,83563.0,0.011967]
[1743915672165,0.0155289,83565.0,83564.0,0.01759836]
[1743915672328,0.3555289,83565.0,83561.0,0.0456272]
[1743915672848,0.3555289,83565.0,83562.0,0.01760176]
[1743915673257,0.6055289,83565.0,83562.0,0.01760176]
[1743915673457,0.3555289,83565.0,83562.0,0.01760176]
[1743915676637,0.0155289,83565.0,83564.0,0.108266]
[1743915676840,0.0001636,83565.0,83564.0,0.23116897]
[1743915676951,0.0001636,83565.0,83564.0,0.24876733]
[1743915685209,0.2901636,83565.0,83564.0,0.24876733]
[1743915685389,0.0001636,83565.0,83564.0,0.24876733]
[1743915703394,0.0001636,83565.0,83564.0,0.34557794]
[1743915703584,0.0001636,83565.0,83564.0,0.24876733]
[1743915711189,0.0001636,83565.0,83564.0,0.24909453]
[1743915711595,0.0001636,83565.0,83564.0,0.25658055]
[1743915712023,0.2801636,83565.0,83564.0,0.25658055]
[1743915712344,0.0001636,83565.0,83564.0,0.25658055]
[1743915713854,0.0001636,83565.0,83564.0,0.35417248]
[1743915717245,0.0001636,83565.0,83564.0,0.35517248]
[1743915717745,0.0001636,83565.0,83564.0,0.25758055]
[1743915717956,0.0001636,83565.0,83564.0,0.25858055]
[1743915732804,0.0001636,83565.0,83564.0,0.38990055]
[1743915738160,0.2301636,83565.0,83564.0,0.38990055]
[1743915738313,0.0001636,83565.0,83564.0,0.38990055]
[1743915743926,0.0001636,83565.0,83564.0,0.38986055]
[1743915748032,0.2701636,83565.0,83564.0,0.38986055]
[1743915748198,0.0001636,83565.0,83564.0,0.38986055]
[1743915758188,0.0001636,83565.0,83564.0,0.38986042]
[1743915760269,0.2601636,83565.0,83564.0,0.38986042]
[1743915760463,0.0001636,83565.0,83564.0,0.38986042]
[1743915762509,0.0001636,83565.0,83564.0,0.34006042]
[1743915764574,0.0001636,83565.0,83564.0,0.29356042]
[1743915767631,0.0001636,83565.0,83564.0,0.16228042]
[1743915767835,0.0001636,83565.0,83564.0,0.29356042]
[1743915779787,0.0001636,83565.0,83564.0,0.39945034]
[1743915780122,0.0001637,83576.0,83564.0,0.39945034]
[1743915780123,7.872e-05,83580.0,83578.0,0.167506]
[1743915780298,0.18131613,83582.0,83578.0,0.167506]
[1743915780466,0.18138697,83582.0,83579.0,0.01742435]
[1743915780792,0.16757184,83582.0,83579.0,0.01742435]
[1743915781399,7.084e-05,83582.0,83579.0,0.18492935]
[1743915781853,0.01378761,83582.0,83580.0,0.167503]
[1743915782233,7.084e-05,83582.0,83581.0,0.02793844]
[1743915782776,7.084e-05,83582.0,83581.0,0.02351702]
[1743915783411,7.084e-05,83582.0,83581.0,0.01742095]
[1743915783624,7.084e-05,83582.0,83581.0,0.02938495]
[1743915784010,7.084e-05,83582.0,83581.0,0.02646154]
[1743915784736,7.084e-05,83582.0,83581.0,0.02584752]
[1743915784939,0.28007084,83582.0,83581.0,0.02584752]
[1743915785119,7.084e-05,83582.0,83581.0,0.02584752]
[1743915787749,0.00023444,83582.0,83581.0,0.02584752]
[1743915800531,0.00023444,83582.0,83581.0,0.19785049]
[1743915800731,0.00023444,83582.0,83581.0,0.32913049]
[1743915801517,0.00023444,83582.0,83581.0,0.33661584]
[1743915813024,0.00023444,83582.0,83581.0,0.33694304]
[1743915820386,0.00023444,83582.0,83581.0,0.32497904]
[1743915820739,0.00023444,83582.0,83581.0,0.31749369]
[1743915825551,0.00023444,83582.0,83581.0,0.26839369]
[1743915825751,0.00023444,83582.0,83581.0,0.14549072]
[1743915826126,0.05578527,83582.0,83581.0,0.01421072]
[1743915826298,0.00023444,83582.0,83581.0,0.01421072]
[1743915826932,0.35219844,83582.0,83581.0,0.01421072]
[1743915827255,0.35219844,83582.0,83581.0,0.0003272]
[1743915829876,0.81786221,83582.0,83581.0,0.0003272]
[1743915830071,0.85480515,83582.0,83581.0,0.0003272]
[1743915830284,0.81786221,83582.0,83581.0,0.0003272]
[1743915831170,0.41021021,83582.0,83581.0,0.0003272]
[1743915831515,1.57311021,83582.0,83581.0,0.0003272]
[1743915831717,1.39711021,83582.0,83581.0,0.0003272]
[1743915831917,1.36109721,83582.0,83581.0,0.0003272]
[1743915832983,1.48400018,83582.0,83581.0,0.0003272]
[1743915834313,1.48400018,83582.0,83581.0,1e-08]
[1743915834510,0.53311318,83582.0,83581.0,1e-08]
[1743915837239,0.19287874,83582.0,83581.0,1e-08]
[1743915839447,0.53304234,83582.0,83581.0,1e-08]
[1743915842878,0.011964,83580.0,83579.0,0.00028721]
[1743915843030,0.47486697,83580.0,83579.0,0.00028721]
[1743915843227,1.14885897,83580.0,83579.0,0.00028721]
[1743915845696,1.09889197,83580.0,83579.0,0.00028721]
[1743915853481,1.09833977,83580.0,83579.0,0.00028721]
[1743915853800,0.47431477,83580.0,83579.0,0.00028721]
[1743915853931,1.25688877,83580.0,83579.0,0.00028721]
[1743915854137,1.25688877,83580.0,83579.0,1e-08]
[1743915854334,0.47431477,83580.0,83579.0,1e-08]
[1743915860351,0.5112449,83580.0,83579.0,1e-08]
[1743915862854,0.011966,83568.0,83567.0,0.0487]
[1743915864035,0.011966,83568.0,83567.0,0.0497]
[1743915864586,0.519494,83568.0,83567.0,0.0497]
[1743915864791,0.519494,83568.0,83567.0,0.0517]
[1743915870691,0.519494,83568.0,83567.0,0.0507]
[1743915871671,0.519494,83568.0,83567.0,0.0487]
[1743915875287,0.5195,83565.0,83564.0,0.0003272]
[1743915875863,0.519505,83563.0,83562.0,0.00028721]
[1743915878614,0.519505,83563.0,83562.0,0.00128721]
[1743915898736,0.749505,83563.0,83562.0,0.00128721]
[1743915898944,0.519505,83563.0,83562.0,0.00128721]
[1743915900562,0.26923468,83563.0,83562.0,0.00128721]
[1743915900769,0.179505,83563.0,83562.0,0.00128721]
[1743915902812,0.519505,83563.0,83562.0,0.00128721]
[1743915910263,0.519505,83563.0,83562.0,0.04768721]
[1743915910667,0.519505,83563.0,83562.0,0.09748721]
[1743915918776,0.5196686,83563.0,83562.0,0.09748721]
[1743915926323,0.5196686,83563.0,83562.0,0.05108721]
[1743915933969,0.5196686,83563.0,83562.0,0.00128721]
[1743915948279,0.8096686,83563.0,83562.0,0.00128721]
[1743915948460,0.5196686,83563.0,83562.0,0.00128721]
[1743915955724,0.519513,83559.0,83558.0,0.02926881]
[1743915960522,0.351967,83558.0,83554.0,0.0499]
[1743915960717,0.611967,83558.0,83554.0,0.0499]
[1743915960894,0.351967,83558.0,83554.0,0.0499]
[1743915968921,0.011968,83555.0,83554.0,0.04933276]
[1743915969122,0.519522,83555.0,83554.0,0.04933276]
[1743915969561,0.519522,83555.0,83554.0,0.04843815]
[1743915970128,0.519522,83555.0,83554.0,0.0476144]
[1743915970846,0.519522,83555.0,83554.0,0.0486144]
[1743915971054,0.519522,83555.0,83554.0,0.0496144]
[1743915984332,0.519522,83555.0,83554.0,0.0499416]
[1743915985400,0.799522,83555.0,83554.0,0.0499416]
[1743915985545,0.519522,83555.0,83554.0,0.0499416]
[1743915996264,0.519522,83555.0,83554.0,0.00239804]
[1743915997302,0.519522,83555.0,83554.0,0.00139804]
[1743915997449,0.520522,83555.0,83554.0,0.00139804]
[1743915997887,0.520522,83555.0,83554.0,0.00039804]
[1743915998153,0.771522,83555.0,83554.0,0.00039804]
[1743915998390,0.5216857,83555.0,83554.0,0.00039804]
[1743916010249,0.179541,83546.0,83545.0,0.02732524]
[1743916010401,0.179541,83546.0,83545.0,0.0557048]
[1743916011946,0.179541,83546.0,83545.0,0.02832524]
[1743916013895,0.19233385,83546.0,83545.0,0.02832524]
[1743916024180,0.48747394,83546.0,83545.0,0.02832524]
[1743916024384,0.24747394,83546.0,83545.0,0.02832524]
[1743916024538,0.24747394,83546.0,83545.0,0.02865264]
[1743916027657,0.19233385,83546.0,83545.0,0.02865264]
[1743916029030,0.14846281,83547.0,83545.0,0.02865264]
[1743916029533,0.167572,83546.0,83545.0,0.02865264]
[1743916029883,0.179541,83546.0,83545.0,0.02865264]
[1743916030299,0.179541,83546.0,83545.0,0.02765264]
[1743916031121,0.179541,83546.0,83545.0,0.02865264]
[1743916032895,0.19259196,83546.0,83545.0,0.02865264]
[1743916037148,0.19275566,83546.0,83545.0,0.02865264]
[1743916047810,0.42275566,83546.0,83545.0,0.02865264]
[1743916048016,0.19275566,83546.0,83545.0,0.02865264]
[1743916053289,0.53275566,83546.0,83545.0,0.02865264]
[1743916053619,0.53275566,83546.0,83545.0,0.0013274]
[1743916053794,1.11109766,83546.0,83545.0,0.0013274]
[1743916054233,1.14811847,83546.0,83545.0,0.0013274]
[1743916054507,1.11109766,83546.0,83545.0,0.0003274]
[1743916055736,1.24522635,83546.0,83545.0,0.0003274]
[1743916055942,1.32902763,83546.0,83545.0,0.0003274]
[1743916056220,1.32902763,83546.0,83545.0,4e-07]
[1743916056434,0.75068563,83546.0,83545.0,4e-07]
[1743916057503,0.74045991,83546.0,83545.0,4e-07]
[1743916058827,0.73945991,83546.0,83545.0,4e-07]
[1743916059033,0.74045991,83546.0,83545.0,4e-07]
[1743916059636,1.15295991,83546.0,83545.0,4e-07]
[1743916059992,1.16750076,83546.0,83545.0,4e-07]
[1743916061141,0.51958,83528.0,83527.0,0.0489]
[1743916061473,0.51958,83528.0,83527.0,0.07736283]
[1743916061877,0.51958,83528.0,83527.0,0.02846283]
[1743916061878,0.6412896,83528.0,83527.0,0.02846283]
[1743916062057,0.519586,83525.0,83524.0,0.0003274]
[1743916062468,0.519586,83525.0,83524.0,0.00043647]
[1743916062820,0.52865976,83525.0,83524.0,0.00043647]
[1743916063173,0.53986936,83525.0,83524.0,0.00043647]
[1743916063383,0.54086936,83525.0,83524.0,0.00043647]
[1743916065360,0.54186936,83525.0,83524.0,0.00043647]
[1743916074125,0.79186936,83525.0,83524.0,0.00043647]
[1743916074364,0.54186936,83525.0,83524.0,0.00043647]
[1743916080636,0.5327956,83525.0,83524.0,0.04893647]
[1743916080823,0.5327956,83525.0,83524.0,0.09763647]
[1743916081195,0.0132096,83525.0,83524.0,0.36296857]
[1743916081582,0.0132096,83525.0,83524.0,0.57356507]
[1743916082081,0.0122096,83525.0,83524.0,0.56333594]
[1743916082471,0.0112096,83525.0,83524.0,0.56333594]
[1743916083287,0.0112096,83525.0,83524.0,0.56433594]
[1743916083706,0.0112096,83525.0,83524.0,0.56533594]
[1743916087178,0.2512096,83525.0,83524.0,0.39771994]
[1743916087380,0.0112096,83525.0,83524.0,0.39771994]
[1743916088962,0.0112096,83525.0,83524.0,0.38574794]
[1743916089545,0.0112096,83526.0,83524.0,0.28854794]
[1743916089746,0.0112096,83526.0,83525.0,0.21440297]
[1743916090144,0.0112096,83526.0,83525.0,0.24540964]
[1743916090811,0.167611,83527.0,83525.0,0.24540964]
[1743916090995,0.167611,83527.0,83525.0,0.19970964]
[1743916091134,0.167611,83527.0,83526.0,0.0457]
[1743916091335,0.179583,83527.0,83526.0,0.16860297]
[1743916091695,0.19077552,83527.0,83526.0,0.19954294]
[1743916094058,0.19077552,83527.0,83526.0,0.20054294]
[1743916095606,0.01119252,83527.0,83526.0,0.24634294]
[1743916095941,0.71803966,83540.0,83539.0,0.10347]
[1743916095942,0.0335954,83540.0,83539.0,0.10347]
[1743916096060,0.0335954,83540.0,83539.0,0.34656297]
[1743916096263,0.0335954,83540.0,83539.0,0.38937309]
[1743916097132,0.0345954,83540.0,83539.0,0.38937309]
[1743916097349,0.0345954,83540.0,83539.0,0.4642221]
[1743916098494,0.0345954,83540.0,83539.0,0.4662221]
[1743916098829,0.0345954,83540.0,83539.0,0.37940309]
[1743916099021,0.0335954,83540.0,83539.0,0.37940309]
[1743916099226,0.0335954,83540.0,83539.0,0.38140309]
[1743916101051,0.2935954,83540.0,83539.0,0.38140309]
[1743916101256,0.0335954,83540.0,83539.0,0.38140309]
[1743916106867,0.0335954,83540.0,83539.0,0.24924309]
[1743916107205,0.0335954,83540.0,83539.0,0.38140309]
[1743916107412,0.10509424,83543.0,83539.0,0.38140309]
[1743916107625,0.10509424,83543.0,83540.0,0.12290297]
[1743916107830,0.11706324,83543.0,83540.0,0.12290297]
[1743916108035,0.11706324,83543.0,83541.0,0.03077559]
[1743916108228,0.11706324,83543.0,83542.0,0.12290297]
[1743916108600,0.11706324,83543.0,83542.0,0.15367673]
[1743916108933,0.11706324,83543.0,83542.0,0.2287189]
[1743916110111,0.11706324,83543.0,83542.0,0.15467673]
[1743916110696,0.0001637,83545.0,83542.0,0.15467673]
[1743916111070,0.0001637,83545.0,83544.0,0.14941282]
[1743916111288,0.0001637,83547.0,83546.0,0.105369]
[1743916111475,0.0001637,83547.0,83546.0,0.27588626]
[1743916111709,0.0001637,83547.0,83546.0,0.35773421]
[1743916113242,0.0001637,83547.0,83546.0,0.36373421]
[1743916113854,0.0001637,83547.0,83546.0,0.36973421]
[1743916121784,0.0001637,83547.0,83546.0,0.25898346]
[1743916122084,0.0001637,83547.0,83546.0,0.40303246]
[1743916123471,0.0001637,83547.0,83546.0,0.39703246]
[1743916123871,0.0001637,83547.0,83546.0,0.40303246]
[1743916124499,0.0001637,83547.0,83546.0,0.27095246]
[1743916124710,0.0001637,83547.0,83546.0,0.40299246]
[1743916124913,0.1797027,83547.0,83546.0,0.34472346]
[1743916125335,0.1797027,83547.0,83546.0,0.33872346]
[1743916125738,0.1797027,83547.0,83546.0,0.34372346]
[1743916126039,0.1797027,83547.0,83546.0,0.33872346]
[1743916126536,0.1797027,83547.0,83546.0,0.33672346]
[1743916126919,0.1797027,83547.0,83546.0,0.34072346]
[1743916127141,0.1797027,83547.0,83546.0,0.33672346]
[1743916127357,0.0001637,83547.0,83546.0,0.33672346]
[1743916127542,0.0001637,83547.0,83546.0,0.34072346]
[1743916131433,0.0121327,83547.0,83546.0,0.34076346]
[1743916131796,0.0121327,83547.0,83546.0,0.29382346]
[1743916132326,0.0121327,83547.0,83546.0,0.16158346]
[1743916132532,0.02332307,83547.0,83546.0,0.17092049]
[1743916133791,0.02332307,83547.0,83546.0,0.16692049]
[1743916133972,0.02332307,83547.0,83546.0,0.16892049]
[1743916134622,0.02332307,83547.0,83546.0,0.16492049]
[1743916134866,0.02332307,83547.0,83546.0,0.16692049]
[1743916138876,0.02332307,83547.0,83546.0,0.18364528]
[1743916139319,0.0121327,83547.0,83546.0,0.18364528]
[1743916139679,0.0121327,83547.0,83546.0,0.05140528]
[1743916139879,0.0121327,83547.0,83546.0,0.03468049]
[1743916142499,0.02332495,83547.0,83546.0,0.03468049]
[1743916143061,0.0121327,83547.0,83546.0,0.03468049]
[1743916145329,0.0121327,83547.0,83546.0,0.03500789]
[1743916151272,0.2721327,83547.0,83546.0,0.03500789]
[1743916151462,0.0121327,83547.0,83546.0,0.03500789]
[1743916155854,0.0121327,83547.0,83546.0,0.08430789]
[1743916160773,0.0001637,83547.0,83546.0,0.20721086]
[1743916160983,0.0001637,83547.0,83546.0,0.24566869]
[1743916161399,0.0001637,83547.0,83546.0,0.20721086]
[1743916167122,0.0001637,83555.0,83547.0,0.011969]
[1743916167328,0.0001637,83555.0,83554.0,0.0473]
[1743916167551,0.0001637,83555.0,83554.0,0.17259638]
[1743916167984,0.0001637,83555.0,83554.0,0.19816526]
[1743916168229,0.0011637,83555.0,83554.0,0.19816526]
[1743916168911,0.0011637,83555.0,83554.0,0.19916526]
[1743916169152,0.0011637,83555.0,83554.0,0.24127588]
[1743916169584,0.0001637,83555.0,83554.0,0.21113326]
[1743916169710,0.0001637,83555.0,83554.0,0.21213326]
[1743916170842,0.0001637,83555.0,83554.0,0.25873326]
[1743916171044,0.0001637,83555.0,83554.0,0.25633985]
[1743916172647,0.2701637,83555.0,83554.0,0.25633985]
[1743916172964,0.0001637,83555.0,83554.0,0.25633985]
[1743916189508,0.0001637,83555.0,83554.0,0.20903985]
[1743916202342,0.0001637,83555.0,83554.0,0.19707185]
[1743916202549,0.06601863,83555.0,83554.0,0.15047185]
[1743916202688,0.0121317,83555.0,83554.0,0.15932888]
[1743916203035,0.0121317,83555.0,83554.0,0.02756888]
[1743916211602,0.0121317,83555.0,83554.0,0.002]
[1743916211842,0.0121317,83555.0,83554.0,0.02755666]
[1743916216207,0.2521317,83555.0,83554.0,0.02755666]
[1743916216353,0.0121317,83555.0,83554.0,0.02755666]
[1743916216554,0.0121317,83555.0,83554.0,0.002]
[1743916216754,0.0121317,83555.0,83554.0,0.02755666]
[1743916216959,0.0121317,83555.0,83554.0,0.002]
[1743916217492,0.0121317,83555.0,83554.0,0.02755666]
[1743916217697,0.0121317,83555.0,83554.0,0.002]
[1743916217852,0.0121317,83555.0,83554.0,0.02755666]
[1743916218266,0.0121317,83555.0,83554.0,0.0260812]
[1743916223526,0.2921317,83555.0,83554.0,0.0260812]
[1743916223750,0.0121317,83555.0,83554.0,0.0260812]
[1743916223894,0.06841273,83555.0,83554.0,0.00052454]
[1743916224089,0.06841273,83555.0,83554.0,0.02610039]
[1743916224290,0.0121317,83555.0,83554.0,0.00052454]
[1743916224732,0.0121317,83555.0,83554.0,0.02610039]
[1743916224928,0.0121317,83555.0,83554.0,0.00052454]
[1743916225137,0.3521317,83555.0,83554.0,0.02610039]
[1743916225337,0.3521317,83555.0,83554.0,0.00052454]
[1743916225589,0.3633505,83555.0,83554.0,0.00052454]
[1743916228638,0.3521317,83555.0,83554.0,0.00052454]
[1743916230781,0.011968,83552.0,83551.0,0.0003274]
[1743916231617,0.179528,83552.0,83551.0,0.0003274]
[1743916236890,0.409528,83552.0,83551.0,0.0003274]
[1743916237052,0.179528,83552.0,83551.0,0.0003274]
[1743916245255,0.519528,83552.0,83551.0,0.0003274]
[1743916246447,0.520528,83552.0,83551.0,0.0003274]
[1743916247005,0.521528,83552.0,83551.0,0.0003274]
[1743916247719,0.53032036,83552.0,83551.0,0.0003274]
[1743916248518,0.60468892,83552.0,83551.0,0.0003274]
[1743916248724,0.53032036,83552.0,83551.0,0.0003274]
[1743916282453,0.01079236,83552.0,83551.0,0.0003274]
[1743916282594,0.17835236,83552.0,83551.0,0.0003274]
[1743916282778,0.19032036,83552.0,83551.0,0.0003274]
[1743916283380,0.181528,83552.0,83551.0,0.0003274]
[1743916284460,0.521528,83552.0,83551.0,0.0003274]
[1743916298110,0.5216917,83552.0,83551.0,0.0003274]
[1743916319858,0.52369239,83552.0,83551.0,0.0003274]
[1743916363531,0.77369239,83552.0,83551.0,0.0003274]
[1743916363768,0.52369239,83552.0,83551.0,0.0003274]
[1743916373001,2.01584339,83552.0,83551.0,0.0003274]
[1743916373155,1.66567505,83552.0,83551.0,0.0003274]
[1743916373398,1.35714605,83552.0,83551.0,0.0003274]
[1743916373639,1.32284905,83552.0,83551.0,0.0003274]
[1743916378563,1.28583739,83552.0,83551.0,0.0003274]
[1743916380666,1.15176039,83552.0,83551.0,0.0003274]
[1743916383752,0.52369239,83552.0,83551.0,0.0003274]
[1743916384153,1.38638339,83552.0,83551.0,0.0003274]
[1743916384349,0.52369239,83552.0,83551.0,0.0003274]
[1743916384576,1.38638339,83552.0,83551.0,0.0003274]
[1743916387850,1.12616105,83552.0,83551.0,0.0003274]
[1743916398400,0.56066905,83552.0,83551.0,0.0003274]
[1743916398607,2.06554905,83552.0,83551.0,0.0003274]
[1743916399229,1.91175705,83552.0,83551.0,0.0003274]
[1743916404762,2.03466002,83552.0,83551.0,4e-07]
[1743916404930,0.519539,83547.0,83546.0,8e-07]
[1743916405135,0.55651566,83547.0,83546.0,8e-07]
[1743916405360,0.179565,83535.0,83534.0,0.0496]
[1743916406659,0.167598,83533.0,83532.0,0.0473]
[1743916406996,0.179569,83533.0,83532.0,0.0473]
[1743916408292,0.519569,83533.0,83532.0,0.0473]
[1743916411457,0.52839176,83533.0,83532.0,0.0473]
[1743916412019,0.80839176,83533.0,83532.0,0.0473]
[1743916412226,0.52839176,83533.0,83532.0,0.0473]
[1743916413249,0.52839176,83533.0,83532.0,0.0476274]
[1743916422629,0.52839176,83533.0,83532.0,0.0939274]
[1743916422815,0.519569,83533.0,83532.0,0.0939274]
[1743916424702,0.769569,83533.0,83532.0,0.0939274]
[1743916424933,0.519569,83533.0,83532.0,0.0939274]
[1743916438262,0.789569,83533.0,83532.0,0.0939274]
[1743916438472,0.519569,83533.0,83532.0,0.0939274]
[1743916452849,0.167596,83534.0,83532.0,0.0939274]
[1743916453173,0.167598,83533.0,83532.0,0.0939274]
[1743916453895,0.179569,83533.0,83532.0,0.0939274]
[1743916454956,0.519569,83533.0,83532.0,0.0939274]
[1743916465397,0.759569,83533.0,83532.0,0.0939274]
[1743916465532,0.519569,83533.0,83532.0,0.0939274]
[1743916467530,0.5197327,83533.0,83532.0,0.0939274]
[1743916473737,0.5197327,83533.0,83532.0,0.0476274]
[1743916479505,0.5197327,83533.0,83532.0,0.0003274]
[1743916505329,0.5197327,83533.0,83532.0,4e-07]
[1743916505330,2.94316167,83533.0,83532.0,4e-07]
[1743916505523,2.94316167,83533.0,83504.0,0.0003274]
[1743916505524,0.011975,83507.0,83504.0,0.0003274]
[1743916505736,0.519625,83507.0,83504.0,0.0003274]
[1743916505932,0.519625,83507.0,83506.0,0.03665587]
[1743916506135,0.519625,83507.0,83506.0,0.01]
[1743916506960,0.519625,83507.0,83506.0,0.01045565]
[1743916507729,0.53240113,83507.0,83506.0,0.0095625]
[1743916508452,0.53240113,83507.0,83506.0,0.00898544]
[1743916509081,0.53240113,83507.0,83506.0,0.00664822]
[1743916509569,0.53240113,83507.0,83506.0,0.00084217]
[1743916509767,0.351975,83504.0,83503.0,0.03833902]
[1743916510934,0.351975,83504.0,83503.0,0.03933902]
[1743916511338,0.351975,83504.0,83503.0,0.04033902]
[1743916514435,0.351975,83504.0,83503.0,0.03833902]
[1743916517248,0.352975,83504.0,83503.0,0.03833902]
[1743916518020,0.353975,83504.0,83503.0,0.03866642]
[1743916527862,0.353975,83504.0,83503.0,0.20786939]
[1743916527863,0.342,83504.0,83503.0,0.20786939]
[1743916528020,0.353975,83504.0,83503.0,0.2347242]
[1743916529270,0.352975,83504.0,83503.0,0.2347242]
[1743916530163,0.34,83504.0,83503.0,0.2347242]
[1743916530409,0.01323087,83507.0,83504.0,0.0463]
[1743916530616,0.00045474,83507.0,83506.0,0.271727]
[1743916530826,0.00045474,83507.0,83506.0,0.39462997]
[1743916531075,0.00045474,83507.0,83506.0,0.42145825]
[1743916537593,0.23045474,83507.0,83506.0,0.42245825]
[1743916537894,0.00045474,83507.0,83506.0,0.42245825]
[1743916538518,0.00045474,83507.0,83506.0,0.41048325]
[1743916538724,0.00045474,83507.0,83506.0,0.42345825]
[1743916538922,0.00045474,83507.0,83506.0,0.55481825]
[1743916544251,0.00061854,83507.0,83506.0,0.55481825]
[1743916546700,0.00061854,83507.0,83506.0,0.42345825]
[1743916546882,0.18024354,83507.0,83506.0,0.24383125]
[1743916548909,0.23547664,83507.0,83506.0,0.07462828]
[1743916549449,0.50547664,83507.0,83506.0,0.07462828]
[1743916549789,0.23547664,83507.0,83506.0,0.02882828]
[1743916551288,0.18024354,83507.0,83506.0,0.02882828]
[1743916558115,0.18024354,83507.0,83506.0,0.02782828]
[1743916558260,0.52024354,83507.0,83506.0,0.02782828]
[1743916558458,0.519631,83504.0,83503.0,0.0003274]
[1743916561689,0.749631,83504.0,83503.0,0.0003274]
[1743916561890,0.519631,83504.0,83503.0,0.0003274]
[1743916570880,0.5197948,83504.0,83503.0,0.0003274]
[1743916573264,0.0001638,83504.0,83503.0,0.0003274]
[1743916573464,0.1678198,83504.0,83503.0,0.0003274]
[1743916573906,0.1797948,83504.0,83503.0,0.0003274]
[1743916576201,0.4197948,83504.0,83503.0,0.0003274]
[1743916576413,0.1797948,83504.0,83503.0,0.0003274]
[1743916579375,0.1817948,83504.0,83503.0,0.0003274]
[1743916579591,0.1807948,83504.0,83503.0,0.0003274]
[1743916580003,0.5207948,83504.0,83503.0,0.0003274]
[1743916580332,0.5702948,83504.0,83503.0,0.0003274]
[1743916580845,1.0203908,83504.0,83503.0,0.0003274]
[1743916581397,0.9262188,83504.0,83503.0,0.0003274]
[1743916581598,0.6941488,83504.0,83503.0,0.0003274]
[1743916582339,0.5702948,83504.0,83503.0,0.0003274]
[1743916582653,0.7119268,83504.0,83503.0,0.0003274]
[1743916583535,0.5217948,83504.0,83503.0,0.0003274]
[1743916631568,0.0021638,83504.0,83503.0,0.40025864]
[1743916631761,0.0021638,83504.0,83503.0,0.49663695]
[1743916632048,0.10758301,83506.0,83505.0,0.274629]
[1743916632253,0.10758301,83506.0,83505.0,0.39753197]
[1743916632485,0.10758301,83506.0,83505.0,0.41997784]
[1743916632933,0.10758301,83506.0,83505.0,0.43451869]
[1743916632934,0.06078301,83506.0,83505.0,0.43451869]
[1743916633115,0.01078301,83506.0,83505.0,0.53882177]
[1743916633533,0.01078301,83506.0,83505.0,0.54182177]
[1743916634091,0.01078301,83506.0,83505.0,0.53882177]
[1743916634471,0.01078301,83506.0,83505.0,0.54182177]
[1743916635225,0.01078301,83506.0,83505.0,0.54482177]
[1743916635566,0.01078301,83506.0,83505.0,0.54182177]
[1743916635879,0.01078301,83506.0,83505.0,0.54482177]
[1743916636537,0.00061854,83507.0,83506.0,0.02651585]
[1743916636731,0.00061854,83507.0,83506.0,0.24441882]
[1743916636941,0.00061854,83507.0,83506.0,0.35065492]
[1743916637712,0.00061854,83507.0,83506.0,0.35365492]
[1743916638837,0.00061854,83507.0,83506.0,0.35665492]
[1743916651139,0.24061854,83507.0,83506.0,0.35665492]
[1743916651351,0.00061854,83507.0,83506.0,0.35665492]
[1743916658741,0.00061854,83507.0,83506.0,0.35365492]
[1743916658882,0.00061854,83507.0,83506.0,0.35065492]
[1743916659424,0.00061854,83507.0,83506.0,0.35565492]
[1743916659807,0.00061854,83507.0,83506.0,0.27576475]
[1743916662384,0.00061854,83507.0,83506.0,0.27609215]
[1743916663992,0.00061854,83507.0,83506.0,0.40753215]
[1743916674253,0.28061854,83507.0,83506.0,0.40753215]
[1743916674484,0.00061854,83507.0,83506.0,0.40753215]
[1743916680483,0.00061854,83507.0,83506.0,1.05457215]
[1743916680690,0.00061854,83507.0,83506.0,1.17746983]
[1743916684638,0.00061854,83507.0,83506.0,0.9085913]
[1743916684924,0.00061854,83507.0,83506.0,0.8135913]
[1743916685228,0.00061854,83507.0,83506.0,0.9449913]
[1743916689528,0.00061854,83507.0,83506.0,0.94409696]
[1743916697508,0.00061854,83507.0,83506.0,0.95863781]
[1743916697741,0.00061854,83507.0,83506.0,1.13103549]
[1743916697979,0.00061854,83507.0,83506.0,1.17783549]
[1743916701724,0.00061854,83507.0,83506.0,1.05493781]
[1743916701931,0.00061854,83507.0,83506.0,1.05485781]
[1743916705121,0.00061854,83507.0,83506.0,1.39985781]
[1743916705748,0.00061854,83507.0,83506.0,1.43721573]
[1743916705960,0.00061854,83507.0,83506.0,1.43221573]
[1743916706131,0.00061854,83507.0,83506.0,1.55511341]
[1743916706360,0.00061854,83507.0,83506.0,1.51975549]
[1743916706561,0.00061854,83507.0,83506.0,1.52475549]
[1743916711936,5.4e-07,83507.0,83506.0,1.54975549]
[1743916712114,0.0001637,83533.0,83532.0,0.179571]
[1743916712315,0.0001637,83533.0,83532.0,0.54212866]
[1743916712666,0.0001637,83533.0,83532.0,0.56680447]
[1743916712794,0.0001637,83533.0,83532.0,0.90680447]
[1743916713425,0.0001637,83533.0,83532.0,0.90791354]
[1743916713759,0.0001637,83533.0,83532.0,1.03081122]
[1743916714255,0.0001637,83533.0,83532.0,1.03581122]
[1743916714863,0.0001637,83533.0,83532.0,1.03481122]
[1743916715080,0.0001637,83533.0,83532.0,1.04081122]
[1743916717128,0.0001637,83533.0,83532.0,1.04978484]
[1743916720234,0.0001637,83533.0,83532.0,1.69666484]
[1743916720437,0.0001637,83533.0,83532.0,1.33150631]
[1743916720641,0.0001637,83533.0,83532.0,1.11409269]
[1743916721058,0.0001637,83533.0,83532.0,1.12863354]
[1743916725231,0.0001637,83533.0,83532.0,0.99707354]
[1743916725346,0.0001637,83533.0,83532.0,1.12863354]
[1743916732387,0.0001637,83533.0,83532.0,1.11409269]
[1743916733682,0.0001637,83533.0,83532.0,1.10909269]
[1743916733882,0.0001637,83533.0,83532.0,1.10709269]
[1743916734287,0.0001637,83533.0,83532.0,1.11109269]
[1743916734610,0.0001637,83533.0,83532.0,0.46421269]
[1743916736520,0.167585,83540.0,83532.0,0.46421269]
[1743916736762,0.01197,83542.0,83535.0,0.167593]